{"text_format":"3","workbook":"xlsx","n_sheets":13,"sheets":["Algus","Põhitõed","Mis on funktsioonid","AVERAGE","MIN ja MAX","Kuupäev ja Aeg","Teksti ja arvude ühendamine","IF-laused","VLOOKUP","Tingimusfunktsioonid","Funktsiooniviisard","Valemivead","Lisateave"],"not_rendered":{"images":32,"external_links":1,"defined_names":21},"read":"whole","date_system":"1900"}

{"sheet":"Algus","index":0,"n_rows":4,"n_cols":1,"rows_kept":4}
[]
["Esmatutvus valemitega"]
["See põgus ülevaade aitab teil kiiresti tutvust teha sellega, kuidas Excelis valemeid ja funktsioone koostada ja kasutada."]
["Tagasi algusse liikumiseks vajutage klahvikombinatsiooni CTRL + HOME. Tutvustusega alustamiseks vajutage klahvikombinatsiooni CTRL + PAGE DOWN."]

{"sheet":"Põhitõed","index":1,"n_rows":43,"n_cols":10,"rows_kept":43}
["Põhitõed: matemaatika Excelis"]
["Liitmiseks, Lahutamiseks, Korrutamiseks ja Jagamiseks saab Excelis ka ilma sisseehitatud funktsioone kasutamata. Selleks tuleb lihtsalt kasutada tehtemärke: +, -, *, /. Kõik valemid algavad võrdusmärgiga (=).\n",null,"Kasutatavad arvud:",null,"Tehe:","Valemid:","Vastused:"]
["Liitmiseks valige lahter F3, tippige =C3+C4 ja vajutage siis sisestusklahvi Enter. \n",null,1,null,"Liitmine (+) ",null,{"$f":"C3+C4","v":3}]
["Lahutamiseks valige lahter F4, tippige =C3-C4 ja vajutage siis sisestusklahvi Enter. ",null,2,null,"Lahutamine (-) ",null,{"$f":"C3-C4","v":-1}]
["Korrutamiseks valige lahter F5, tippige =C3*C4 ja vajutage siis sisestusklahvi Enter.\n",{"$nulls":3},"Korrutamine (*) ",null,{"$f":"C3*C4","v":2}]
["Jagamiseks valige lahter F6, tippige =C3/C4 ja vajutage siis sisestusklahvi Enter.\n",{"$nulls":3},"Jagamine (/) ",null,{"$f":"C3/C4","v":0.5}]
["Vaadake seda: kui muudate arve lahtrites C3 ja C4, muutuvad automaatselt ka valemi tulemid.",{"$nulls":3},"Astendamine (^) "," \n",{"$f":"C3^C4","v":1}]
["LISAPUNKTID: Väärtuse astendamiseks saate kasutada katusmärki (^), näiteks =A1^A2. Selle sisestamiseks vajutage klahvi AltGr + Ä + tühikuklahvi. Sisestage lahtrisse F7 valem =C3^C4."]
["Üksikasjalikum teave"]
["Järgmine"]
["Valemid, lahtrid ja vahemikud"]
["Excel koosneb üksiklahtritest, mis on rühmitatud ridade ja veergudena. Read on nummerdatud, veerge tähistavad tähed. Töölehel on üle miljoni rea ja 16 000 veeru ning valemeid saab lisada igasse lahtrisse. \n"]
["Valemid võivad sisaldada lahtriviiteid, lahtriviidete vahemikke, tehtemärke ja konstante. Siin on mõned näited valemitest:\n\n=A1+B1\n=10+20\n=SUM(A1:A10)\n\n"]
["Nagu näete, kasutasime ülal kolmandas näites funktsiooni SUM. Funktsioon on valmiskäsk, mis võtab ühe või mitu väärtust, teeb nendega asjakohased arvutused ja tagastab tulemi. Funktsioon SUM näiteks võtab teie määratud lahtriviited või vahemikud ja arvutab kokku nende väärtuste summa. Selles näites arvutab funktsioon lahtrite A1 kuni A10 väärtuste summa. Excelis on üle 400 funktsiooni, mida saate uurida menüüs Valemid.\n"]
["Funktsiooni sisaldavad valemid algavad võrdusmärgiga, millele järgneb funktsiooni nimi koos sulgudesse lisatud argumentide ehk väärtustega, mida funktsioon arvutamiseks kasutab. \n"]
["Valemi kinnitamiseks tuleb vajutada sisestusklahvi Enter. Seejärel valem arvutatakse ja lahtris kuvatakse arvutuse tulem. Valemi enda nägemiseks võite heita pilgu menüülindi all asuvale valemiribale või vajutada klahvi F2 – aktiveeritakse redigeerimisrežiim ja näete lahtris valemit. Valemi lõpuleviimiseks ja tulemi arvutamiseks vajutage uuesti sisestusklahvi Enter.\n\n"]
["Selgitusi valemite kohta"]
["=10+20 on valem, kus 10 ja 20 on konstandid ning märk + on tehtemärk."]
["=SUM(A1:A10) on valem, kus SUM on funktsiooni nimi, vasak- ja paremsulu vahel on valemi argumendid ning A1:A10 on funktsiooni lahtrivahemik."]
["=SUM(A1:A10;C1:C10) on valem, kus SUM on funktsiooni nimi, vasak- ja paremsulu vahel on valemi argumendid ning A1:A10;C1:C10 on funktsiooni lahtrivahemikud, mida eraldab semikoolon."]
["HEA TEADA Konstandid on väärtused, mida saate sisestada lahtritesse või valemitesse. Ehkki =10+20 võib arvutamisel anda sama vastuse nagu =A1+B1, pole konstantide kasutamine hea mõte. Miks? Konstanti pole lihtne näha ilma lahtrit valimata ja seda spetsiaalselt otsimata. Kui soovite seda hiljem muuta, võib see olla keeruline. Palju lihtsam on sisestada konstandid lahtritesse, kus neid on lihtne vajaduse korral muuta, ja neile siis valemites viidata.\n\nNäide Valige allpool kollane lahter, milles on arv 12. Nagu näete, oleme kasutanud funktsiooni SUM koos lahtrivahemikuga. Me ei tippinud arve \"4\" ega \"8\" otse valemisse. \n"]
["Tagasi"]
["Edasi"]
["Lisateavet saate veebist"]
["Exceli kasutamine kalkulaatorina"]
["Exceli valemid ülevaade"]
["Exceli funktsioonid (kategooriatena) "]
["Exceli funktsioonid (tähestikuliselt) "]
["Tasuta Exceli koolitus veebis"]
{"$rows_empty":10}
[{"$nulls":9},"Väärtused"]
[{"$nulls":9},4]
[{"$nulls":9},8]
[{"$nulls":9},{"$f":"SUM(J41:J42)","v":12}]

{"sheet":"Mis on funktsioonid","index":2,"n_rows":51,"n_cols":7,"rows_kept":51}
["Mis on funktsioonid?"]
["Funktsioonid võimaldavad teha palju põnevat. Lisaks mitmesugustele matemaatikatehetele saate näiteks väärtusi otsida või koguni kuupäevi ja kellaaegu arvutada. Proovime näiteks funktsiooniga SUM väärtusi liita.",null,"Puuviljad","Summa",null,"Liha","Summa"]
["Sisestage puuviljatabeli summaveergu (lahtrisse D7) valem =SUM(D3:D6) või tippige =SUM( ja valige see vahemik hiirega. Seejärel vajutage sisestusklahvi Enter. Selle valemi kasutamisel liidetakse väärtused, mis on lahtrites D3, D4, D5 ja D6. Vastus peaks olema 170.\n",null,"Õunad",50,null,"Veiseliha",50]
["Järgmiseks proovime Automaatsumma funktsiooni. Valige lihatabeli summaveeru all asuv lahter (lahter G7). Seejärel valige Valemid > Automaatsumma > Summa. Excel sisestab valemi teie eest automaatselt. Selle kinnitamiseks vajutage sisestusklahvi Enter. Automaatsumma funktsioon hõlmab kõiki levinumaid funktsioone.\n",null,"Apelsinid",20,null,"Kana",30]
["Selle jaoks on olemas ka mugav kiirklahv. Valige lahter D15 ja vajutage siis esmalt klahve Alt = (ehk Alt Shift 0) ja siis sisestusklahvi Enter. Funktsioon SUM sisestatakse automaatselt.",null,"Banaanid",60,null,"Sealiha",10]
["Üksikasjalikum teave",null,"Sidrunid",40,null,"Kala",50]
["LISAPUNKTID\nKatsetage funktsiooni COUNT, kasutades mõnda juba proovitud meetodit. COUNT loendab vahemikus arve sisaldavate lahtrite arvu.",null,"SUM > ",{"$f":"SUM(D3:D6)","v":170},null,"SUM > "]
["Järgmine"]
["Lisateavet funktsioonide kohta",null,"Toode","Summa",null,"Toode","Summa"]
["Avage menüü Valemid ja sirvige funktsiooniteeki, kus funktsioonid on loetletud kategooriate kaupa – Tekst, Kuupäev ja kellaaeg jne. Nupu Lisa funktsioon klõpsamisel saate funktsiooni otsida nime järgi. Samuti saate käivitada funktsiooniviisardi, mis aitab teil valemit koostada. \n\nKui asute pärast võrdusmärgi = vajutamist funktsiooni nime tippima, käivitab Excel Intellisense’i, mis loetleb kõik teie tipitud tähtedega algavad funktsioonid. Soovitud funktsiooni leidmisel vajutage tabeldusklahvi. Excel sisestab funktsiooni nime ja lisab teie jaoks ka argumentide avasulu. Samuti kuvatakse valikulised ja nõutavad argumendid. \n\n\n\nVaatame mõne funktsiooni ülesehitust lähemalt. Funktsiooni SUM ülesehitus on järgmine:",null,"Leib",50,null,"Leib",50]
["Kui funktsioon SUM oskaks rääkida, ütleks ta, et valem peaks tagastama kõigi lahtrites D35 kuni D38 olevate väärtuste ja kogu veeru H väärtuste summa. SUM on funktsiooni nimi, D35:D38 on esimese vahemiku argument, mis on üldjuhul alati nõutav, ja H:H on teise vahemiku argument, mida eraldab esimesest semikoolon. Järgmiseks proovime funktsioone, mis ei nõua argumente.\n",null,"Sõõrikud",100,null,"Sõõrikud",100]
["Funktsioon TODAY tagastab tänase kuupäeva. Seda väärtust värskendatakse automaatselt, kui Excel arvutab väärtused uuesti.",null,"Küpsised",40,null,"Küpsised",40]
["VAADAKE SEDA\nValige need lahtrid. Seejärel otsige Exceli akna parempoolsest allnurgast teksti Sum: 170 (akna alumisel ribal). Seda riba nimetatakse olekuribaks ja sealt leiate kiiresti nii valitud lahtri või vahemiku summa kui ka muid andmeid. ",null,"Koogid",50,null,"Koogid",50]
["OLULINE ÜKSIKASI\nTehke sellel lahtril topeltklõps. Märkate lõpupoole väärtust 100. Kuigi sellisesse valemisse saab sisestada arve, ei soovita me seda teha, kui see pole just hädavajalik. Seda nimetatakse konstandiks ja selle olemasolu on lihtne unustada. Soovitame selle asemel viidata mõnele muule lahtrile, nt F51. Sellisel viisil on seda lihtne näha ja see ei ole valemisse peidetud. ",null,"Pirukad",20,null,"Pirukad",20]
["Lisateavet saate veebist",null,"SUM > ",null,null,"COUNT >"]
["Kogu teave funktsiooni SUM kohta"]
["Arvude liitmine automaatsumma funktsiooni abil"]
["Kogu teave funktsiooni COUNT kohta"]
["Tasuta Exceli koolitus veebis"]
["Tagasi üles"]
["Järgmine"]
{"$rows_empty":12}
[null,null,"Puuviljad","Summa"]
[null,null,"Õunad",50]
[null,null,"Apelsinid",20]
[null,null,"Banaanid",60]
[null,null,"Sidrunid",40]
[null,null,"SUM > ",{"$f":"SUM(D35:D38)","v":170}]
[]
[]
[]
[]
[null,null,"Toode","Summa"]
[null,null,"Autod",20]
[null,null,"Veoautod",10]
[null,null,"Jalgrattad",10]
[null,null,"Uisud",40]
[]
[{"$nulls":3},"Kokku:",null,"Täiendav väärtus","Uus summa"]
[{"$nulls":3},{"$f":"SUM(D45:D48,100)","v":180},null,100,{"$f":"SUM(D45:D48,F51)","v":180}]

{"sheet":"AVERAGE","index":3,"n_rows":15,"n_cols":7,"rows_kept":15}
["Funktsioon AVERAGE"]
["Funktsiooni AVERAGE abil saate arvutada lahtrivahemiku arvude keskmise.",null,"Puuviljad","Summa",null,"Liha","Summa"]
["Valige lahter D7 ja lisage siis Automaatsumma viisardi abil funktsioon AVERAGE.",null,"Õunad",50,null,"Veiseliha",50]
["Nüüd klõpsake lahtrit G7 ja sisestage käsitsi funktsioon AVERAGE, tippides =AVERAGE(G3:G6). ",null,"Apelsinid",20,null,"Kana",30]
["Lahtris D15 saate kasutada Automaatsumma funktsiooni või sisestada käsitsi tippides veel ühe funktsiooni AVERAGE. ",null,"Banaanid",60,null,"Sealiha",10]
["VAADAKE SEDA\nValige suvaline arvuvahemik ja heitke pilk olekuribale – seal on keskmine kohe näha.\n",null,"Sidrunid",40,null,"Kala",50]
["Tagasi eelmisele lehele",null,"AVERAGE >",null,null,"AVERAGE >"]
["Edasi järgmisele lehele"]
["LISAPUNKTID\nProovige siin kasutada funktsiooni MEDIAN või MODE. \n\nMEDIAN annab teile andmehulga keskel asuva väärtuse, \nMODE aga annab kõige sagedamini esineva väärtuse.\n",null,"Toode","Summa",null,"Toode","Summa"]
["Lingid veebis leiduvale lisateabele",null,"Leib",50,null,"Leib",50]
["Valige, et saada veebist kogu teave funktsiooni AVERAGE kohta",null,"Sõõrikud",100,null,"Sõõrikud",100]
["Valige, et saada veebist kogu teave funktsiooni MEDIAN kohta",null,"Küpsised",40,null,"Küpsised",40]
["Valige, et saada veebist kogu teave funktsiooni MODE kohta",null,"Koogid",50,null,"Koogid",50]
["Valige, et saada teavet tasuta Exceli veebikoolituse kohta",null,"Pirukad",20,null,"Pirukad",20]
[null,null,"AVERAGE >"]

{"sheet":"MIN ja MAX","index":4,"n_rows":17,"n_cols":9,"rows_kept":17}
["Funktsioonid MIN ja MAX"]
["Funktsiooniga MIN saate leida lahtrivahemiku kõige väiksema väärtuse.",null,"Puuviljad","Summa",null,"Liha","Summa"]
["Funktsiooniga MAX saate leida lahtrivahemiku kõige suurema väärtuse.",null,"Õunad",50,null,"Veiseliha",50]
["Valige lahter D7 ja lisage siis automaatsumma viisardi abil funktsioon MIN.\n",null,"Apelsinid",20,null,"Kana",30]
["Nüüd valige lahter G7 ja sisestage funktsioon MAX, tippides =MAX(G3:G6).\n",null,"Banaanid",60,null,"Sealiha",10]
["Lahtris D15 saate funktsiooni MIN või MAX sisestamiseks kasutada automaatsumma viisardit või funktsiooni ise tippida. \n",null,"Sidrunid",40,null,"Kala",50]
["Lisateavet saate veebist\n",null,"MIN >",null,null,"MAX >"]
["Kogu teave funktsiooni MIN kohta"]
["Kogu teave funktsiooni MAX kohta",null,"Toode","Summa",null,"Toode","Summa"]
["Tasuta Exceli koolitus veebis",null,"Leib",50,null,"Leib",50]
["HEA TEADA\nFunktsioone MIN ja MAX saate kasutada ka mitme vahemiku või väärtustega, et leida nende väärtuste hulgast suurim või väikseim, näiteks =MIN(A1:A10;B1:B10) või =MAX(A1:A10;B1), kus B1 sisaldab läviväärtust – näiteks läviväärtuse 10 korral ei tagasta see valem kunagi tulemit, mis on väiksem kui 10.\n",null,"Sõõrikud",100,null,"Sõõrikud",100]
[null,null,"Küpsised",40,null,"Küpsised",40]
[null,null,"Koogid",50,null,"Koogid",50]
[null,null,"Pirukad",20,null,"Pirukad",20]
[null,null,"MIN või MAX >",{"$nulls":3},{"$f":"MIN(G10:G14,10)","v":10}]
[]
[{"$nulls":8}," "]

{"sheet":"Kuupäev ja Aeg","index":5,"n_rows":47,"n_cols":6,"rows_kept":47,"merged":[[4,2,4,3],[26,2,26,3],[30,2,30,3],[44,2,44,3]]}
["Kuupäevafunktsioonid"]
["Excel oskab teile anda praeguse kuupäeva, võttes aluseks teie arvuti piirkonnasätted. Samuti saate kuupäevi liita ja lahutada."]
["Uurige funktsiooni TODAY, mis annab teile tänase kuupäeva. Kuna tegemist on reaalajas töötavate ehk muutlike funktsioonidega, siis kui te töövihiku homme avate, kuvatakse seal juba homne kuupäev. Sisestage =TODAY() lahtrisse D6. \n"]
["Kuupäevade lahutamine – sisestage oma järgmine sünnipäev kujul DD\\.MM\\.YY lahtrisse D7 ja vaadake, kuidas Excel teile valemi =D7-D6 abil lahtris D8 teada annab, mitu päeva selleni on.\n"]
["Kuupäevade liitmine – kas soovite teada, mis kuupäeval peate mõne arve ära maksma või millal tagastama raamatukogust laenatud raamatu? Selleks saate kuupäevale liita kindla arvu päevi. Sisestage lahtrisse D10 suvaline päevade arv. Lahtris D11 arvutame valemiga =D6+D10 tähtaja tänasest alates.\n",null,"Kuupäevafunktsioonid"]
["HEA TEADA\nExcel võtab kuupäevade ja kellaaegade talletamisel aluseks päevade arvu alates 1. jaanuarist 1900. Kellaajad talletatakse päeva murdosadena, võttes aluseks minutid. Seega talletatakse 01.01.2017 12:30.00 tegelikult arvuna 42736,5208. Kui kellaaeg või kuupäev kuvatakse selliste arvudena, vajutage klahve Ctrl+1, valige Arv ja valige soovitud kuupäev- või Aeg vorming. ",null,"Tänane kuupäev:",null,null,{"$f":"IF(D6=TODAY(),\"Täpselt nii!\",\"\")","v":""}]
["OLULINE ÜKSIKASI\nKui te ei soovi, et Excel kuvaks negatiivse arvu, kuna te pole veel oma sünnipäeva sisestanud, võite kasutada näiteks sellist IF-funktsiooni: =IF(D7=\"\";\"\";D7-D6), mis ütleb: „Kui D7 ei võrdu millegagi, ära näita midagi; muul juhul näita D7 miinus D6“.\n",null,"Teie sünnipäev:"]
["Kellaajafunktsioonid",null,"Päevi teie sünnipäevani:",{"$f":"D7-D6","v":0}]
["Excel oskab teile anda praeguse kellaaja, võttes aluseks teie arvuti piirkonnasätted. Samuti saate kellaaegu liita ja lahutada. Näiteks võib teil olla tarvis jälgida, kui mitu tundi töötaja nädalas töötas, et arvutada tema töötasu ja ületunnid.\n"]
["Lahtrisse D28 sisestage =NOW(), mis annab teile praeguse kellaaja. Seda värskendatakse iga kord, kui Excel teeb arvutuse. Kellaajavormingu värskendamiseks võite vajutada klahve Ctrl+1 ja valida Arv > Aeg > soovitud vorming.\n",null,"Ajapikenduse päevad:"]
["Kellaaegade vaheliste tundide liitmine – lahtrisse D36 oleme sisestanud =((D35-D32)-(D34-D33))*24, millega arvutatakse kellegi algus- ja lõpuaeg ning seejärel lahutatakse töötajal lõunale kulunud aeg. Valemi lõpus olev *24 teisendab Exceli nähtava päeva murdosa tundideks. Lahter tuleb kindlasti vormindada arvuvorminguga. Selleks valige Avaleht > Vorming > Lahtrite Vormindamine (Ctrl+1) > Arv > Arv > 2 komakohta.\n\n",null,"Arve tähtaeg:",{"$f":"D6+D10","v":"00:00:00"}]
["Kui see valem oskaks rääkida, ütleks ta „Võtke lõpuaeg ja lahutage see algusajast, seejärel lahutage lõunapausi lõpu- ja algusaeg ning siis korrutage see 24-ga, et teisendada Exceli päeva murdosana väljendatav aeg tundideks“, ehk =((Lõpuaeg - Algusaeg)-(Lõuna algus - Lõuna lõpp))*24."]
["Tagasi"]
["Edasi"]
["Lisateavet saate veebist"]
["Kogu teave funktsiooni TODAY kohta"]
["Kogu teave funktsiooni LEN kohta"]
["Kogu teave funktsiooni DATE kohta"]
["Tasuta Exceli koolitus veebis"]
{"$rows_empty":7}
[null,null,"Kellaajafunktsioonid"]
[null,null,"Praegune kellaaeg:"]
[]
[]
[null,null,"Päevas töötatud tunnid"]
[null,null,"Algusaeg:","08:00:00"]
[null,null,"Lõuna lõpp:","12:00:00"]
[null,null,"Lõuna algus:","13:00:00"]
[null,null,"Lõpuaeg:","17:00:00"]
[null,null,"Tunnid kokku:",{"$f":"((D35-D32)-(D34-D33))*24","v":8.000000000000002}]
{"$rows_empty":8}
[null,null,"Staatiline kuupäev ja kellaaeg"]
[null,null,"Kuupäev:","2017-09-27"]
[null,null,"Kellaaeg:","08:52:00"]

{"sheet":"Teksti ja arvude ühendamine","index":6,"n_rows":37,"n_cols":6,"rows_kept":37,"merged":[[26,2,26,3],[30,2,30,3],[34,2,34,3]]}
["Mitmes lahtris asuva teksti ühendamine"]
["Excelit kasutades tekib sageli vajadus erinevates lahtrites olev tekst ühendada. Sagedane näide on selline, kus teil on omaette veergudes eesnimed ja perekonnanimed ning soovite need omavahel kombineerida. Õnneks laseb Excel seda kerge vaevaga teha ampersandi ehk ja-märgi (&) abil, mille saate sisestada klahvikombinatsiooniga Shift+6.\n",null,"Eesnimi","Perekonnanimi","Perekonnanimi, eesnimi","Täisnimi"]
["Sisestage lahtrisse E3 perekonna- ja eesnime ühendamiseks valem =D3&C3. \n",null,"Irene","Kuusik",{"$f":"D3&\", \"&C3","v":"Kuusik, Irene"},{"$f":"C3&\" \"&D3","v":"Irene Kuusik"}]
["KuusikIrene ei näe siiski päris õige välja! Peaksime sinna lisama koma ja tühiku. Selleks kasutame uue tekstistringi loomiseks jutumärke. Seekord sisestage =D3&\", \"&C3. Argument &\", \"& lubab meil lahtrites oleva teksti ühendada koma ja tühikuga.\n",null,"Allan","Pääsuke"]
["Täisnime loomiseks ühendame ees- ja perekonnanime, kuid kasutame ainult tühikut, ilma komata. Sisestage lahtrisse F3 valem =C3&\" \"&D3.\n",null,"Jaan","Välbe"]
["Üksikasjalikum teave",null,"Aino","Rebane"]
["Edasi",null,"Eero","Kross"]
["Teksti ja arvude koos kasutamine",null,"Harri","Kalda"]
["&-märki saab kasutada ka teksti ja arvude (mitte ainult teksti) ühendamiseks.\n\nVaadake lahtreid C28:D29. Kas näete, kuidas kuupäev ja kellaaeg on erinevates lahtrites? Saate need ühendada &-märgiga, nagu lahtrites C32:C33 näha, ent see ei paista päris õige. Kahjuks ei tea Excel, kuidas te arve vormindada soovite. Seetõttu teisendatakse need aluskujule, milleks on käesoleval juhul kuupäeva järjenumber. Meil on vaja Excelile täpselt öelda, kuidas valemi arvuosa vormindada, et see kuvataks tulemiks saadud tekstistringis teie soovitud kujul. Seda saate teha funktsiooniga TEXT ja vormingukoodiga.",null,"Robert","Keskküla"]
["Sisestage lahtrisse C36 valem =C28&\" \"&TEXT(D28;\"DD\\.MM\\.YYYY\"). DD\\.MM\\.YYYY on vormingukood, mis tähistab kuupäeva kujul päev.kuu.aasta, näiteks 25.09.2017.\n",null,"Kristel","Kangro"]
["Lahtrisse C37 sisestage =C29&\" \"&TEXT(D29;\"H:MM.SS\"). H:MM on kellaajavorming kujul tunnid:minutid, näiteks 10:30.\n\n"]
["VAADAKE SEDA\nValemeid on vahel keeruline lugeda, eriti siis, kui need pikaks venivad. Loetavuse huvides võite argumentide vahele lisada tühikuid, näiteks nii:\n\n=C28 & \" \" & TEXT(D28;\"DD\\.MM\\.YYYY\")"]
["TASUB UURIDA\nKui te pole kindel, millist vormingukoodi kasutada, saate lahtrite soovitud viisil vormindamiseks vajutada klahve Ctrl+1 ja valida väärtuse Arv. Seejärel valige väärtus Kohandatud. Kuvatava vormingukoodi saate kopeerida tagasi oma valemisse."]
["Lisateavet saate veebist"]
["Kogu teave funktsiooni TEXT kohta"]
["Teksti ja arvude ühendamine"]
["Tasuta Exceli koolitus veebis"]
{"$rows_empty":9}
[null,null,"Teksti ja arvude kasutamine"]
[null,null,"Tänane kuupäev:",{"$f":"TODAY()","v":"2019-08-09"}]
[null,null,"Praegune kellaaeg:",{"$f":"NOW()","v":43686.568762152776}]
[]
[null,null,"Teksti ja arvude ühendamine"]
[null,null,{"$f":"C28&\" \"&D28","v":"Tänane kuupäev: 43686"}]
[null,null,{"$f":"C29&\" \"&D29","v":"Praegune kellaaeg: 43686,5687621528"}]
[]
[null,null,"Teksti ja arvude vormindamine"]
[null,null,{"$f":"C28 &\" \"& TEXT(D28,\"DD\\.MM\\.YYYY\")","v":"Tänane kuupäev: 09.08.2019"}]
[null,null,{"$f":"C29&\" \"&TEXT(D29,\"H:MM.SS\")","v":"Praegune kellaaeg: 13:39.01"}]

{"sheet":"IF-laused","index":7,"n_rows":37,"n_cols":6,"rows_kept":37,"merged":[[7,2,7,3]]}
["IF-laused"]
["IF-lausete abil saate tingimuste vahel luua loogilisi võrdlusi. Üldjuhul ütleb IF-lause, et kui üks tingimus on tõene, tuleb midagi teha; muul juhul tuleb teha midagi muud. Valemid saavad tagastada teksti, väärtuseid või rohkem arvutusi."]
["Sisestage lahtrisse D9 valem =IF(C9=\"Õun\";TRUE;FALSE). Õige vastus on TRUE. \n"]
["Kopeerige D9 lahtrisse D10. Siin peaks vastus olema FALSE, kuna apelsin pole õun.\n"]
["Proovige teist näidet: vaadake valemit lahtris D12. Alustuseks võtame valemi =IF(C12<100;\"Väiksem kui 100\";\"Suurem kui või võrdub 100\"). Mis juhtub, kui sisestate lahtrisse C12 väärtuse, mis on suurem kui 100?\n"]
["OLULINE ÜKSIKASI\nTRUE ja FALSE erinevad Exceli valemites muudest sõnadest selle poolest, et neid ei pea panema jutumärkidesse ja Excel suurtähestab need automaatselt. Ka arve pole vaja jutumärkidesse panna. Tavateksti (nt Jah või Ei) peab siiski panema jutumärkidesse: \n= IF (C9 =\"Õun\";\"Jah\";\"Ei\")"]
["Vaadake üksikasjalikuma teabe saamiseks alla"]
["Edasi",null,"IF-laused"]
["IF-lause koos teise funktsiooniga",null,"Õun"]
["IF-laused saavad teatud tingimuse täitmisel põhjustada ka muude arvutuste tegemise. Siin hindame lahtri sisu järgi, kas käibemaksu tuleks võtta või mitte. Kui tingimus on tõene, arvutame käibemaksu.\n",null,"Apelsin"]
["Lahtrisse F33 sisestasime =IF(E33=\"Jah\";F31*Käibemaks;0), kus Käibemaks on määratletud nimega vahemikuna, mille väärtus on 0,0825. Meie valem ütleb, et kui lahtri E33 väärtus võrdub Jah, tuleb lahtri F31 väärtus korrutada käibemaksuga; muul juhul tagastab valem väärtuse 0.\n\nValige lahtris E33 Jah-väärtuse asemel Ei ja vaadake, kuidas arvutus muutub."]
["Lisasime IF-lause, et arvutada saatekulud, kui see on nõutav. Lahtris F35 kuvatakse =IF(E35=\"Jah\";SUM(D28:D29)*1,25;0). See tähendab: \"kui lahtris E35 on Jah, tuleb ülal asuvast tabelist võtta veeru Kogus summa ja korrutada see 1,25-ga; muul juhul tagastatakse 0\".\n",null,50,{"$f":"IF(C12<100,\"Väiksem kui 100\",\"Suurem kui või võrdub 100\")","v":"Väiksem kui 100"}]
["Seejärel tuleb valemis lahtris F35 asendada 1,25 väärtusega \"Saatekulud\". Kui alustate tippimist, peaks Exceli automaatkorrektuur selle teie jaoks üles leidma. Kui Excel leiab selle, vajutage sisestamiseks tabeldusklahvi Tab. See on nimega vahemik, mille sisestamiseks valisime Valemid > Määra nimi. Kui teil on vaja saatekulusid edaspidi muuta, peate seda tegema ainult ühes kohas; seejärel saate kasutada nime Saatekulud terves töövihikus.\n\n"]
["HEA TEADA\nValemi loomisel ümbritseb Excel valemis viidatud vahemikud automaatselt värvilise äärisega. Vastavad vahemikud kuvatakse valemis sama värviga. Näete seda, kui valite lahtri F33 ja vajutate valemi redigeerimiseks klahvi F2."]
["EKSPERDI NÕUANNE\nNimega vahemike abil saate terminid või väärtused ühes kohas määratleda ja neid siis terves töövihikus uuesti kasutada. Kõigi selle töövihiku nimega vahemike vaatamiseks valige Valemid > Nimehaldur. Lisateabe saamiseks klõpsake siin.\n"]
["Tagasi"]
["Edasi"]
["Lisateavet saate veebist"]
["Kogu teave funktsiooni IF kohta"]
["Kogu teave funktsiooni IFS kohta"]
["Täpsemad IF-laused"]
["Tasuta Exceli koolitus veebis"]
[]
[]
[]
[]
[null,null,"Toode","Kogus","Hind","Kokku"]
[null,null,"Vidin",2,{"v":9.760711585683554,"d":"9.76 €"},{"$f":"'IF-laused'!$E$28:$E$29*'IF-laused'!$D$28:$D$29","v":{"v":19.521423171367108,"d":"19.52 €"}}]
[null,null,"Jubin",3,{"v":3.4189202461080024,"d":"3.42 €"},{"$f":"'IF-laused'!$E$28:$E$29*'IF-laused'!$D$28:$D$29","v":{"v":10.256760738324008,"d":"10.26 €"}}]
[]
[{"$nulls":3},"Vahesumma",{"$f":"SUM('IF-laused'!$E$28:$E$29)","v":{"v":13.179631831791557,"d":"13.18 €"}},{"$f":"SUM('IF-laused'!F28:F29)","v":{"v":29.778183909691116,"d":"29.78 €"}}]
[]
[{"$nulls":3},"Käibemaks?","Jah",{"$f":"IF(E33=\"Jah\",F31*Käibemaks,0)","v":{"v":2.456700172549517,"d":"2.46 €"}}]
[]
[{"$nulls":3},"Saatekulud?","Jah",{"$f":"IF(E35=\"Jah\",SUM(D28:D29)*1.25,0)","v":{"v":6.25,"d":"6.25 €"}}]
[]
[{"$nulls":3},"Kokku",null,{"$f":"SUM(F33,F31,F35)","v":{"v":38.48488408224063,"d":"38.48 €"}}]

{"sheet":"VLOOKUP","index":8,"n_rows":43,"n_cols":7,"rows_kept":43}
["VLOOKUP"]
["VLOOKUP on üks kõige sagedamini kasutatavaid Exceli funktsioone. See on ka üks meie lemmikuid! Funktsiooniga VLOOKUP saate vasakpoolsest veerust väärtust otsida. Kui vastav väärtus leitakse, tagastab VLOOKUP selle teabe parempoolses veerus. VLOOKUP ütleb:\n"]
[{"$f":"VLOOKUP(A1,B:C,2,FALSE)","v":{"$error":"#N/A"}}]
["Mida soovite otsida?"]
["Kui te selle leiate, mitme veeru võrra paremal tuleks väärtus kuvada?"]
["Kust te seda otsida soovite?"]
["Kas soovite täpset või ligikaudset vastet?"]
["Sisestage lahtrisse D22 valem =VLOOKUP(C22;C17:D20;2;FALSE). Õunte korral on õige vastus 50. VLOOKUP otsis sõna Õunad, leidis selle, liikus siis ühe veeru võrra paremale ja tagastas koguse.\n\n"]
["Proovige seda nüüd ise tabeli Liha lahtris G22. Valem peaks olema =VLOOKUP(F22;F17:G20;2;FALSE).\n\n"]
["EKSPERIMENT\nProovige valida ripploenditest erinevaid üksusi. Tulemilahtrid värskendatakse kohe ja neis kuvatakse uued väärtused."]
["Üksikasjalikum teave"]
["Edasi"]
["VLOOKUP ja #N/A"]
["Kindlasti tekib vahel olukord, kus VLOOKUP ei leia seda, mida palusite tal otsida, ja tagastab hoopis veateate (#N/A). Vahel on põhjus selles, et otsitavat väärtust lihtsalt ei ole, vahel aga pole viitelahtris veel väärtust.\n"]
["Kui teate kindlalt, et otsitav väärtus on olemas, ent soovite vea peita, kui otsingulahter on tühi, saate kasutada IF-lauset. Sel juhul lisame VLOOKUP-i valemi IF-valemi sisse, nagu lahtris D43:\n\n=IF(C43=\"\";\"\";VLOOKUP(C43;C37:D41;2;FALSE))\n\nSee tähendab, et kui lahtris C43 pole midagi (\"\"), ei tagasta valem midagi; muul juhul tagastatakse VLOOKUP-i tulemid. Pöörake tähelepanu teisele lõpu- ehk paremsulule valemi lõpus. Sellega suletakse IF-lause.\n"]
["Kui te ei tea täpselt, kas teie otsitav väärtus on olemas, ent soovite siiski #N/A-vea peita, saate lahtris G43 kasutada veatöötlusfunktsiooni IFERROR: =IFERROR(VLOOKUP(F43;F37:G41;2;FALSE);\"\"). IFERROR ütleb, et kui VLOOKUP tagastab õige tulemi, kuvatakse see; muul juhul ei kuvata midagi (\"\"). Meie valisime mitte millegi kuvamise (\"\"), ent kasutada saate ka arve (0,1, 2 jne) või teksti, näiteks \"Valem pole õige\".\n",null,"Puuviljad","Summa",null,"Liha","Summa"]
["OLULINE ÜKSIKASI\nIFERROR on niinimetatud üldine veatöötlusfunktsioon ehk see peidab igasugused vead, mida teie valem võib sisaldada. See võib kaasa tuua probleeme, kui Excel soovib anda teile märku valemis leiduvast tõelisest veast, mis vajab parandamist.\n\nRusikareegel on, et veatöötlejad tuleks valemitesse lisada üksnes siis, kui olete täiesti kindel, et valemid töötavad õigesti.",null,"Õunad",50,null,"Veiseliha",50]
["Tagasi",null,"Apelsinid",20,null,"Kana",30]
["Edasi",null,"Banaanid",60,null,"Sealiha",10]
["Lisateavet saate veebist",null,"Sidrunid",40,null,"Kala",50]
["Kogu teave funktsiooni VLOOKUP kohta"]
["Kogu teave funktsioonide INDEX/MATCH kohta",null,"Õunad",null,null,"Sealiha"]
["Kogu teave funktsiooni IFERROR kohta"]
["Tööleheandmete analüüsimine PivotTable-liigendtabelite abil"]
["Tasuta Exceli koolitus veebis"]
{"$rows_empty":9}
[null,null,"Kui funktsioon SUM lahtris D42 oskaks rääkida, ütleks see järgmist. Liitke kokku väärtused lahtrites D38, D39, D40 ja D41."]
[null,null,"Toode","Summa",null,"Toode","Summa"]
[null,null,"Leib",50,null,"Leib",50]
[null,null,"Sõõrikud",100,null,"Sõõrikud",100]
[null,null,"Küpsised",40,null,"Küpsised",40]
[null,null,"Koogid",50,null,"Koogid",50]
[null,null,"Pirukad",20,null,"Pirukad",20]
[]
[{"$nulls":3},{"$f":"VLOOKUP(C43,C37:D41,2,FALSE)","v":{"$error":"#N/A"}},null,"Saiakesed",{"$f":"IFERROR(VLOOKUP(F43,F37:G41,2,FALSE),\"\")","v":""}]

{"sheet":"Tingimusfunktsioonid","index":9,"n_rows":123,"n_cols":34,"rows_kept":123}
["Tingimusfunktsioonid – SUMIF"]
["Tingimusfunktsioonide abil saate määratud tingimuse või kriteeriumide alusel leida vahemikus olevate arvude summa, keskmise, arvu, miinimumi või maksimumi. Kui teil on näiteks puuviljade loetelu, saate kiiresti leida õunte arvu või uurida, kui suur osa apelsinidest on Florida sorti.",null,"Puuviljad","Summa",null,"Puuviljad","Sort","Summa",{"$nulls":17},"Puuviljad",null,"Õunad",null,"Apelsinid",null,"Banaanid",null,"Sidrunid"]
["Funktsiooniga SUMIF saate leida summa ühes vahemikus, võttes aluseks kindlad kriteeriumid, mida otsitakse teisest vahemikust (nt õunte arv). Valige lahter D17 ja tippige =SUMIF(C3:C14;C17;D3:D14). SUMIF-funktsiooni ülesehitus on järgmine.",null,"Õunad",50,null,"Õunad","Fuji",50,{"$nulls":17},"Õunad",null,"Fuji",null,"Florida",null,"Cavendish",null,"Rough"]
[{"$f":"SUMIF(C3:C14,C17,D3:D14)","v":150},null,"Apelsinid",20,null,"Apelsinid","Florida",20,{"$nulls":17},"Apelsinid",null,"Honeycrisp",null,"Navel",null,"Lady Finger",null,"Eureka"]
["Millist vahemikku soovite vaadata?",null,"Banaanid",60,null,"Banaanid","Cavendish",60,{"$nulls":17},"Banaanid"]
["Millist väärtust (teksti või arvu) soovite otsida?",null,"Sidrunid",40,null,"Sidrunid","Rough",40,{"$nulls":17},"Sidrunid"]
["Millises vahemikus soovite iga leitud vaste korral väärtused liita?",null,"Õunad",50,null,"Õunad","Honeycrisp",50]
["SUMIFS on funktsiooniga SUMIF väga sarnane, kuid lubab kasutada mitut kriteeriumit. Seega saate selle näite korral otsida nii puuvilja kui ka sorti, mitte ainult puuvilja. Valige lahter H17 ja tippige =SUMIFS(H3:H14;F3:F14;F17;G3:G14;G17). SUMIFS-funktsiooni ülesehitus on järgmine.\n",null,"Apelsinid",20,null,"Apelsinid","Navel",20]
["=SUMIFS(H3:H14;F3:F14;F17;G3:G14;G17)",null,"Banaanid",60,null,"Banaanid","Lady Finger",60]
["Millise vahemiku väärtused soovite liita?",null,"Sidrunid",40,null,"Sidrunid","Eureka",40]
["See on esimene vahemik, millest vasteid otsida",null,"Õunad",50,null,"Õunad","Honeycrisp",50]
["See on esimese vaste kriteerium",null,"Apelsinid",20,null,"Apelsinid","Navel",20]
["See on teine vahemik, millest vasteid otsida",null,"Banaanid",60,null,"Banaanid","Cavendish",60]
["See on teise vaste kriteerium",null,"Sidrunid",40,null,"Sidrunid","Eureka",40]
["EKSPERDI NÕUANNE\nIgas puuvilja- ja sordilahtris on ripploend, millest saate valida soovitud puuvilja. Proovige järele – valemid värskendatakse automaatselt."]
["Üksikasjalikum teave",null,"Puuviljad","SUMIF",null,"Puuviljad","Sort","SUMIFS"]
["Järgmine",null,"Õunad",null,null,"Apelsinid","Florida"]
["Tingimusfunktsioonid – COUNTIF"]
["Funktsioonidega COUNTIF ja COUNTIFS saate vahemikus teie enda määratud kriteeriumide põhjal väärtusi loendada. Erinevalt teistest IF- ja IFS-funktsioonidest kasutatakse neis üksnes kriteeriumide vahemikku ja kriteeriumeid. Need ei väärtusta ühte vahemikku ega vaata seejärel teise, et väärtused kokku liita."]
["Valige lahter D64 ja tippige =COUNTIF(C50:C61;C64). COUNTIF-funktsiooni ülesehitus on järgmine."]
["=COUNTIF(C50:C61;C64)"]
["Millist vahemikku soovite vaadata?"]
["Millist väärtust (teksti või arvu) soovite otsida?"]
["COUNTIFS on funktsiooniga COUNTIF väga sarnane, kuid lubab kasutada mitut kriteeriumit. Seega saate selle näite korral otsida nii puuvilja kui ka sorti, mitte ainult puuvilja. Valige lahter H64 ja tippige =COUNTIFS(F50:F61;F64;G50:G61;G64). COUNTIFS-funktsiooni ülesehitus on järgmine.\n"]
["=COUNTIFS(F50:F61;F64;G50:G61;G64)"]
["See on esimene vahemik, kus väärtusi loendada"]
["See on esimese vaste kriteerium"]
["See on teine vahemik, kus väärtusi loendada"]
["See on teise vaste kriteerium"]
["Üksikasjalikum teave"]
["Edasi"]
["Veel tingimusfunktsioone"]
["Funktsioonidega SUMIF, SUMIFS, COUNTIF ja COUNTIFS olete juba tuttav. Nüüd võite ise kätt proovida teiste funktsioonidega, näiteks AVERAGEIF/S, MAXIFS, MINIFS. Kuna kõigi nende funktsioonide ülesehitus on sarnane, piisab pärast valemi koostamist sellest, kui funktsiooni nimi välja vahetada. Oleme üles kirjutanud kõik funktsioonid, mida teil lahtris E106 vaja läheb. Võite need kopeerida ja kleepida või harjutamise mõttes ise lahtrisse tippida.\n\nSUMIF \t=SUMIF(C92:C103;C106;E92:E103) \nSUMIFS \t=SUMIFS(E92:E103;C92:C103;C106;D92:D103;D106) \nAVERAGEIF \t=AVERAGEIF(C92:C103;C106;E92:E103) \nAVERAGEIFS\t=AVERAGEIFS(E92:E103;C92:C103;C106;D92:D103;D106)\nCOUNTIF \t=COUNTIF(C92:C103;C106)\nCOUNTIFS \t=COUNTIFS(C92:C103;C106;D92:D103;D106) \nMAXIFS \t=MAXIFS(E92:E103;C92:C103;C106;D92:D103;D106)\nMINIFS \t=MINIFS(E92:E103;C92:C103;C106;D92:D103;D106)\n"]
["Üksikasjalikum teave"]
["Edasi"]
["Väärtusargumendiga funktsioon SUMIF"]
["Siin on näide funktsiooni SUMIF kasutamisest selleks, et leida üles kõik määratud summast suuremad (>) väärtused:"]
[{"$f":"SUMIF(D118:D122,\">=50\")","v":200}]
["Liitke mõned väärtused selle kriteeriumi alusel:"]
["...Vaadake läbi need lahtrid...\n "]
["...ja kui väärtus on suurem kui 50, liitke see.\n "]
["MÄRKUS. Kui märkate, et koostate palju SUMIF-valemeid, võib teie jaoks paremini sobida hoopis PivotTable-liigendtabel. Lisateavet leiate sellest PivotTable-liigendtabeleid käsitlevast artiklist."]
["Lisateavet saate veebist"]
["Kogu teave funktsiooni SUMIF kohta"]
["Kogu teave funktsiooni SUMIFS kohta"]
["Kogu teave funktsiooni COUNTIF kohta"]
["Kogu teave funktsiooni COUNTIFS kohta"]
["Kogu teave funktsiooni AVERAGEIF kohta"]
["Kogu teave funktsiooni AVERAGEIFS kohta",null,"Puuviljad","Summa",null,"Puuviljad","Sort","Summa"]
["Kogu teave funktsiooni MINIFS kohta",null,"Õunad",50,null,"Õunad","Fuji",50]
["Kogu teave funktsiooni MAXIFS kohta",null,"Apelsinid",20,null,"Apelsinid","Florida",20]
["Ripploendi loomine",null,"Banaanid",60,null,"Banaanid","Cavendish",60]
["Tasuta Exceli koolitus veebis",null,"Sidrunid",40,null,"Sidrunid","Rough",40]
["Tagasi üles",null,"Õunad",50,null,"Õunad","Honeycrisp",50]
["Edasi",null,"Apelsinid",20,null,"Apelsinid","Navel",20]
[null,null,"Banaanid",60,null,"Banaanid","Lady Finger",60]
[null,null,"Sidrunid",40,null,"Sidrunid","Eureka",40]
[null,null,"Õunad",50,null,"Õunad","Honeycrisp",50]
[null,null,"Apelsinid",20,null,"Apelsinid","Navel",20]
[null,null,"Banaanid",60,null,"Banaanid","Cavendish",60]
[null,null,"Sidrunid",40,null,"Sidrunid","Eureka",40]
[]
[null,null,"Puuviljad","COUNTIF",null,"Puuviljad","Sort","COUNTIFS"]
[null,null,"Õunad",{"$f":"COUNTIF(C50:C61,C64)","v":3},null,"Apelsinid","Florida",{"$f":"COUNTIFS(F50:F61,F64,G50:G61,G64)","v":1}]
{"$rows_empty":26}
[null,null,"Puuviljad","Sort","Summa"]
[null,null,"Õunad","Fuji",50]
[null,null,"Apelsinid","Florida",20]
[null,null,"Banaanid","Cavendish",60]
[null,null,"Sidrunid","Rough",40]
[null,null,"Õunad","Honeycrisp",50]
[null,null,"Apelsinid","Navel",20]
[null,null,"Banaanid","Lady Finger",60]
[null,null,"Sidrunid","Eureka",40]
[null,null,"Õunad","Honeycrisp",50]
[null,null,"Apelsinid","Navel",20]
[null,null,"Banaanid","Cavendish",60]
[null,null,"Sidrunid","Eureka",40]
[]
[null,null,"Puuviljad","Sort","Proovige järele"]
[null,null,"Sidrunid","Eureka",{"$f":"AVERAGEIFS(E92:E103,C92:C103,C106,D92:D103,D106)","v":40}]
{"$rows_empty":10}
[null,null,"Toode","Summa"]
[null,null,"Leib",50]
[null,null,"Sõõrikud",100]
[null,null,"Küpsised",40]
[null,null,"Koogid",50]
[null,null,"Pirukad",20]
[{"$nulls":3},{"$f":"SUMIF(D118:D122,\">=50\")","v":200}]

{"sheet":"Funktsiooniviisard","index":10,"n_rows":14,"n_cols":4,"rows_kept":14}
["Laske funktsiooniviisardil end juhendada"]
["Kui teate soovitud funktsiooni nime, kuid pole päris kindel, kuidas seda koostada, saate appi võtta funktsiooniviisardi.\n"]
["Valige lahter D10, siis valige Valemid > Lisa funktsioon, tippige VLOOKUP väljale Otsige funktsiooni ja valige Mine. Kui näete, et VLOOKUP on esile tõstetud, klõpsake allservas nuppu OK. Kui valite loendist mõne funktsiooni, kuvab Excel selle süntaksi.\n"]
["Seejärel sisestage funktsiooni argumendid vastavatele tekstiväljadele. Iga argumendi sisestamise järel väärtustab Excel selle ja kuvab teile argumendi tulemi. Valemi lõpptulem kuvatakse all. Iga uue osani jõudmisel kuvatakse vormi allservas iga argumendi kriteeriumid. Kui olete valmis, valige OK. Excel sisestab valemi teie eest töölehele.\n\n\n",null,"Puuviljad","Summa"]
["VAADAKE SEDA\nPeaksite saama valemi =VLOOKUP(C10;C5:D8;2;FALSE)",null,"Õunad",50]
["HEA TEADA\nLahtri- ja vahemikuviiteid saate nii tippida kui ka hiirega valida.",null,"Apelsinid",20]
["HEA TEADA\nIga uue argumendini jõudmisel kuvatakse argumendi kirjeldus vormi allservas valemi tulemi kohal.\n",null,"Banaanid",60]
["Tagasi",null,"Sidrunid",40]
["Edasi"]
["Lisateavet saate veebist",null,"Õunad",{"$f":"VLOOKUP(C10,C5:D8,2,FALSE)","v":50}]
["Exceli valemite ülevaade"]
["Exceli funktsioonid (kategooriatena)"]
["Exceli funktsioonid (tähestikuliselt)"]
["Tasuta Exceli koolitus veebis"]

{"sheet":"Valemivead","index":11,"n_rows":36,"n_cols":4,"rows_kept":36}
["Valemivigade parandamine"]
["Varem või hiljem satute vastamisi valemiga, mis sisaldab viga. Excel kuvab sel juhul lahtris veateate #VeaNimi. Veateated annavad märku, kui midagi on valemis valesti, ent vigade parandamine ei pruugi olla lihtne. Õnneks on olemas mitu võimalust, mis aitavad teil vea põhjuse välja selgitada ja ära parandada.\n"]
["Veakontroll – valige Valemid > Veakontroll. Laaditakse dialoog, mis annab teile teada teie konkreetse vea üldise põhjuse. Lahtris D9 kuvatava vea #N/A põhjus on selles, et väärtusele \"Õun\" ei vasta midagi. Probleemi lahendamiseks saate kasutada mõnda olemasolevat väärtust, veateate funktsiooniga IFERROR tõkestada või veateadet ignoreerida – kui kasutate sellist väärtust, mis on olemas, kaob veateade iseenesest.\n",null,"Puuviljad","Summa"]
["Kui klõpsate nuppu Spikker vea kohta, avatakse konkreetset veateadet käsitlev spikriteema. Kui klõpsate nuppu Kuva arvutuskäik, avatakse dialoog Valemi väärtustamine.\n",null,"Õunad",50]
["Iga kord, kui klõpsate nuppu Väärtusta, analüüsib Excel valemit, üks osa korraga. See ei pruugi teile teada anda vea täpset põhjust, ent see osutab kohale, kus viga tekkis. Seejärel saate spikriteemat lugedes välja selgitada, mis teie valemis valesti läks.\n",null,"Apelsinid",20]
["EKSPERIMENT\nMis siin valesti on? Vihje: proovime kõiki üksusi liita (SUM).",null,"Banaanid",60]
["HEA TEADA\nNupu Suvandid klõpsamisel saate määrata reeglid selle kohta, millal tuleks vigu Excelis kuvada või ignoreerida.\n",null,"Sidrunid",40]
["Tagasi"]
["Edasi",null,"Õun",{"$f":"VLOOKUP(C9,C3:D7,2,FALSE)","v":{"$error":"#N/A"}}]
["Lisateavet saate veebist"]
["Vigade tuvastamine valemites"]
["Vigaste valemite vältimine"]
["Väärtustage pesastatud valem sammhaaval"]
["Tasuta Exceli koolitus veebis"]
{"$rows_empty":15}
[null,null,"Puuviljad","Summa"]
[null,null,"Õunad",50]
[null,null,"Apelsinid",20]
[null,null,"Banaanid",60]
[null,null,"Sidrunid",40]
[]
[null,null,"Kokku",{"$f":"sume(D31:D34)","v":{"$error":"#NAME?"}}]

{"sheet":"Lisateave","index":12,"n_rows":5,"n_cols":1,"rows_kept":5}
["Kas teil on Exceli kohta veel küsimusi?"]
["Vajutage klahvikombinatsiooni ALT + Q ja tippige otsitav sõna või küsimus, millele soovite vastust."]
["Jätkake. Exceliga saate veel enamat õppida:"]
["Kogukond: Küsige küsimusi ja suhelge teiste Exceli fännidega.\n"]
["Mis on veel uut?\nOffice 365 tellijad saavad pidevalt värskendusi ja uusi funktsioone.\n\n"]